bitfinex/quotes_ETHUSD_20251120
["timestamp","ask_amount","ask_price","bid_price","bid_amount"]
[1763635472620,0.4735,3010.9,3010.7,5.2477041]
[1763635473206,0.493,3010.8,3010.7,5.2477041]
[1763635473527,0.80313775,3010.8,3010.7,5.2477041]
[1763635473725,0.80313775,3010.8,3010.7,0.4735]
[1763635474793,0.80313775,3010.8,3010.7,3.79498669]
[1763635475100,0.80313775,3010.8,3010.7,0.4735]
[1763635476025,0.80313775,3010.8,3010.7,3.79498669]
[1763635476413,0.31013775,3010.8,3010.7,3.79498669]
[1763635477914,0.31013775,3010.8,3010.7,4.99007545]
[1763635478149,0.002,3010.9,3010.7,4.99007545]
[1763635478150,0.31213775,3010.9,3010.7,12.10156214]
[1763635478443,0.002,3010.9,3010.8,0.006]
[1763635478833,0.002,3010.9,3010.8,0.31813775]
[1763635479214,0.002,3010.9,3010.8,3.63951412]
[1763635479413,0.002,3010.9,3010.8,5.31094349]
[1763635481450,0.4625,3010.9,3010.8,5.30494349]
[1763635481654,0.002,3010.9,3010.8,5.30494349]
[1763635482322,0.002,3010.9,3010.8,1.98356712]
[1763635482523,0.6426,3010.9,3010.8,0.31213775]
[1763635482843,1.1038,3010.9,3010.8,0.31213775]
[1763635483034,1.41454558,3010.9,3010.8,0.31213775]
[1763635483252,1.41454558,3010.9,3010.7,3.79]
[1763635483419,0.9217,3010.8,3010.7,3.79]
[1763635483917,1.23240616,3010.8,3010.7,3.79]
[1763635487147,1.23240616,3010.8,3010.3,3.32292804]
[1763635487349,0.4605,3010.5,3010.3,3.32292804]
[1763635487538,0.4605,3010.5,3010.3,6.64485608]
[1763635487865,0.4605,3010.4,3010.3,0.001]
[1763635488215,3.61543747,3010.9,3010.3,0.001]
[1763635488419,0.31069861,3010.8,3010.3,0.001]
[1763635488831,0.31069861,3010.8,3010.4,0.001]
[1763635489251,0.31269861,3010.8,3010.4,0.001]
[1763635489755,0.002,3010.8,3010.4,0.001]
[1763635490143,0.4605,3010.5,3010.4,0.001]
[1763635490751,0.9217,3010.5,3010.4,0.001]
[1763635492966,0.4605,3010.5,3010.4,0.001]
[1763635493264,0.002,3010.8,3010.4,1.14992718]
[1763635493465,0.002,3010.8,3010.6,4.7742041]
[1763635494566,0.002,3010.8,3010.6,8.09577013]
[1763635495634,0.002,3010.8,3010.7,0.0068]
[1763635496761,0.002,3010.8,3010.7,3.32828669]
[1763635496974,0.002,3010.8,3010.7,9.57773617]
[1763635497138,0.9237,3010.8,3010.7,9.57093617]
[1763635497338,0.9237,3010.8,3010.7,6.24944948]
[1763635497551,0.9237,3010.8,3010.7,8.09569079]
[1763635497751,0.4625,3010.8,3010.7,8.09569079]
[1763635498536,0.9237,3010.8,3010.7,4.7742041]
[1763635499268,0.4625,3010.8,3010.7,4.7742041]
[1763635499473,0.002,3010.8,3010.7,9.23742737]
[1763635499862,0.4625,3010.8,3010.7,5.91594068]
[1763635500158,0.9237,3010.8,3010.7,5.91594068]
[1763635500361,1.23449344,3010.8,3010.4,8.09701498]
[1763635500673,0.4605,3010.5,3010.4,4.7752041]
[1763635500856,0.4605,3010.5,3010.4,0.001]
[1763635501173,0.9217,3010.5,3010.4,0.001]
[1763635501372,1.23240821,3010.5,3010.4,0.001]
[1763635501587,0.88320821,3010.5,3010.4,0.001]
[1763635501882,1.34440821,3010.5,3010.4,0.001]
[1763635502873,0.88320821,3010.5,3010.4,0.001]
[1763635503288,0.31070821,3010.5,3010.4,4.7752041]
[1763635503575,0.112,3010.7,3010.4,5.92413064]
[1763635504078,0.42270821,3010.7,3010.4,5.92413064]
[1763635504278,0.31070821,3010.7,3010.4,5.92413064]
[1763635504453,0.88590821,3010.8,3010.4,5.92413064]
[1763635504778,0.31070821,3010.7,3010.4,5.92413064]
[1763635504974,0.31070821,3010.7,3010.4,9.24590611]
[1763635505474,0.31070821,3010.7,3010.5,0.92469061]
[1763635505779,0.114,3010.8,3010.5,0.92469061]
[1763635505780,0.31270821,3010.8,3010.5,0.92469061]
[1763635505953,0.31270821,3010.8,3010.7,4.7742041]
[1763635506154,0.002,3010.8,3010.7,4.7742041]
[1763635506356,0.9237,3010.8,3010.7,4.7742041]
[1763635506547,1.23440821,3010.8,3010.5,0.92469061]
[1763635506755,0.31070821,3010.7,3010.6,1.34856144]
[1763635507159,0.31070821,3010.7,3010.6,4.67015846]
[1763635507371,0.77390821,3010.8,3010.6,4.67015846]
[1763635508855,0.31270821,3010.8,3010.6,4.67015846]
[1763635509061,0.002,3010.8,3010.6,4.67015846]
[1763635509565,0.002,3010.8,3010.7,5.66585254]
[1763635509893,0.002,3010.8,3010.7,5.67265254]
[1763635512095,0.002,3010.8,3010.7,8.99413923]
[1763635512258,0.0012,3010.8,3010.7,8.99413923]
[1763635513791,0.0012,3010.8,3010.7,5.67265254]
[1763635514089,0.0012,3010.8,3010.7,8.99413923]
[1763635514901,0.0012,3010.8,3010.7,5.66585254]
[1763635515106,0.0012,3010.8,3010.7,4.7742041]
[1763635515605,0.493,3010.8,3010.7,4.7742041]
[1763635515802,0.0012,3010.8,3010.7,8.09569079]
[1763635516104,0.0012,3010.8,3010.7,4.7742041]
[1763635516302,0.0012,3010.8,3010.7,8.09569079]
[1763635516704,0.493,3010.8,3010.7,8.09569079]
[1763635516900,0.9524,3010.8,3010.7,4.7742041]
[1763635517209,0.9524,3010.8,3010.7,8.09569079]
[1763635517503,0.493,3010.8,3010.7,9.61643618]
[1763635517697,0.9524,3010.8,3010.7,9.61643618]
[1763635518277,0.0012,3010.8,3010.7,9.62323618]
[1763635518987,0.0012,3010.8,3010.7,9.61643618]
[1763635520189,0.493,3010.8,3010.7,9.61643618]
[1763635520709,0.9524,3010.8,3010.7,6.29494949]
[1763635520873,1.26317881,3010.8,3010.4,1.80401563]
[1763635521078,0.4918,3010.5,3010.4,0.001]
[1763635521582,0.9512,3010.5,3010.4,0.001]
[1763635521787,0.4918,3010.5,3010.4,0.001]
[1763635522330,0.9512,3010.5,3010.4,0.001]
[1763635522690,0.1132,3010.8,3010.4,0.0078]
[1763635522885,0.8833109,3010.8,3010.4,0.001]
[1763635523108,0.3127109,3010.7,3010.4,0.001]
[1763635523289,0.7721109,3010.7,3010.4,0.001]
[1763635523904,0.3127109,3010.7,3010.6,4.7810041]
[1763635524098,0.002,3010.7,3010.6,8.10260112]
[1763635524716,0.002,3010.7,3010.6,8.09580112]
[1763635524920,0.002,3010.7,3010.6,8.10260112]
[1763635527321,0.002,3010.7,3010.6,8.09580112]
[1763635527486,0.002,3010.7,3010.6,9.45722424]
[1763635530327,0.002,3010.7,3010.6,9.45042424]
[1763635530530,0.002,3010.7,3010.6,9.45722424]
[1763635530724,0.002,3010.7,3010.6,9.45042424]
[1763635531025,0.002,3010.7,3010.6,9.44893181]
[1763635531800,0.973,3010.7,3010.6,8.09430869]
[1763635532800,0.973,3010.7,3010.5,5.66873466]
[1763635533136,0.971,3010.6,3010.5,8.09441902]
[1763635533627,0.002,3010.7,3010.5,8.09441902]
[1763635533827,0.31296929,3010.7,3010.5,8.09441902]
[1763635533992,0.4886,3010.6,3010.5,8.09441902]
[1763635534195,0.4886,3010.6,3010.5,9.00486322]
[1763635534427,1.28202829,3010.6,3010.5,9.00486322]
[1763635534795,1.28202829,3010.6,3010.5,4.77271167]
[1763635535830,1.28202829,3010.6,3010.4,0.001]
[1763635535995,1.28202829,3010.5,3010.4,0.001]
[1763635536201,1.28122829,3010.5,3010.4,0.001]
[1763635537447,1.28117197,3010.5,3010.4,0.001]
[1763635539432,1.28317197,3010.5,3010.4,0.001]
[1763635540563,0.31297197,3010.5,3010.4,0.001]
[1763635540753,0.002,3010.5,3010.4,0.001]
[1763635540921,0.31297197,3010.5,3010.4,0.001]
[1763635541127,0.002,3010.5,3010.4,0.001]
[1763635541324,0.31297197,3010.5,3010.4,0.001]
[1763635541655,0.002,3010.5,3010.4,0.001]
[1763635541853,0.76917197,3010.5,3010.4,0.001]
[1763635542036,1.25857197,3010.5,3010.4,0.001]
[1763635545656,0.31297197,3010.5,3010.4,0.001]
[1763635545862,0.002,3010.5,3010.4,0.001]
[1763635546020,0.31297197,3010.5,3010.4,0.001]
[1763635546326,0.002,3010.5,3010.4,0.001]
[1763635546532,0.31297197,3010.5,3010.4,0.001]
[1763635546732,0.002,3010.5,3010.4,0.001]
[1763635546959,0.31297197,3010.5,3010.4,0.001]
[1763635547132,0.002,3010.5,3010.4,0.001]
[1763635547332,0.31297197,3010.5,3010.4,0.001]
[1763635547558,0.002,3010.5,3010.4,0.001]
[1763635547764,0.31297197,3010.5,3010.4,0.001]
[1763635547964,0.002,3010.5,3010.4,0.001]
[1763635548253,0.31297197,3010.5,3010.4,0.001]
[1763635548553,0.002,3010.5,3010.4,0.001]
[1763635548758,0.31297197,3010.5,3010.4,0.0086]
[1763635548916,0.002,3010.5,3010.4,1.18167559]
[1763635549122,0.002,3010.5,3010.4,1.67307559]
[1763635549452,0.002,3010.5,3010.0,1.19566074]
[1763635549453,0.3304,3010.4,3010.0,1.19566074]
[1763635549652,0.405504,3009.9,3008.9,0.89674379]
[1763635549825,1.57671716,3009.8,3008.4,0.31217197]
[1763635550032,0.50919409,3009.7,3008.3,4.77271167]
[1763635550255,0.31097197,3009.6,3008.4,0.90699264]
[1763635550452,6.64584302,3009.4,3008.6,0.90699264]
[1763635550768,0.31097197,3009.3,3009.1,4.77271167]
[1763635551050,0.42297197,3009.4,3009.1,4.77271167]
[1763635551258,0.4562,3009.2,3008.8,4.77271167]
[1763635551423,0.76717197,3009.2,3008.8,4.77271167]
[1763635551619,0.3172,3008.9,3008.8,4.77271167]
[1763635551830,0.3172,3008.9,3008.8,5.24998284]
[1763635552255,0.4894,3009.1,3008.8,5.74888284]
[1763635552460,0.79894105,3009.3,3008.9,3.32347369]
[1763635552831,0.30954105,3009.3,3009.0,4.77271167]
[1763635553034,0.30954105,3009.3,3009.2,4.77271167]
[1763635553035,0.112,3009.3,3009.2,4.77271167]
[1763635553569,0.5682,3009.3,3009.2,4.77271167]
[1763635553739,3.81211125,3009.6,3009.2,4.77271167]
[1763635553740,0.4894,3009.6,3009.2,5.27161167]
[1763635553935,0.4213873,3009.7,3009.5,4.77271167]
[1763635554249,0.9956873,3009.8,3009.5,4.77271167]
[1763635554595,0.9956873,3009.8,3008.8,0.47727117]
[1763635554596,0.6531,3009.6,3008.5,0.48926628]
[1763635554880,0.6531,3009.6,3008.7,0.99784631]
[1763635554881,1.40141967,3009.5,3008.7,0.99784631]
[1763635555049,0.3092985,3009.4,3008.5,4.77271167]
[1763635555248,0.112,3009.3,3008.5,4.77271167]
[1763635555453,0.4212985,3009.3,3008.5,4.77271167]
[1763635555755,0.4562,3008.6,3008.5,4.77271167]
[1763635555933,0.4562,3008.6,3008.5,5.24998284]
[1763635556456,0.4562,3008.6,3008.5,0.47727117]
[1763635556654,0.9456,3008.6,3008.5,0.001]
[1763635556846,0.6014,3008.9,3008.5,4.77371167]
[1763635557041,3.9248912,3008.9,3008.5,4.77371167]
[1763635557268,0.4562,3008.6,3008.5,0.001]
[1763635557564,0.9456,3008.6,3008.5,0.001]
[1763635560141,0.9448,3008.6,3008.5,0.001]
[1763635562163,0.4554,3008.6,3008.5,0.001]
[1763635562384,0.9448,3008.6,3008.5,0.001]
[1763635562539,4.26860509,3008.6,3008.5,0.001]
[1763635562738,5.02784527,3008.6,3008.5,0.001]
[1763635564276,0.4894,3009.3,3008.5,0.9983]
[1763635564480,0.112,3009.0,3008.6,5.27161167]
[1763635565368,0.4562,3008.7,3008.6,4.77271167]
[1763635565779,0.6014,3009.0,3008.6,5.27161167]
[1763635566079,0.112,3009.0,3008.6,5.27161167]
[1763635566238,0.112,3009.0,3008.6,6.4636521]
[1763635566440,0.112,3009.0,3008.7,3.32369461]
[1763635566652,0.112,3009.0,3008.6,6.4636521]
[1763635566883,0.6014,3009.0,3008.6,6.4636521]
[1763635567182,0.6014,3009.0,3008.6,9.78744397]
[1763635567987,0.4562,3008.7,3008.6,4.77271167]
[1763635568481,0.4562,3008.7,3008.6,8.09651676]
[1763635568689,0.112,3009.0,3008.6,8.55611676]
[1763635569257,0.112,3009.0,3008.6,5.23231167]
[1763635569657,0.112,3009.0,3008.6,8.55609937]
[1763635569857,0.5766,3009.0,3008.6,8.55609937]
[1763635570693,0.5766,3009.0,3008.6,5.23231167]
[1763635571997,3.89996928,3009.0,3008.6,4.77271167]
[1763635572355,0.4646,3008.9,3008.6,4.77271167]
[1763635573292,0.4646,3008.9,3008.6,8.09651676]
[1763635573680,0.4646,3008.9,3008.6,4.77271167]
[1763635574272,0.4677,3008.7,3008.6,4.77271167]
[1763635574481,0.4677,3008.7,3008.5,3.32491241]
[1763635574697,0.3304,3008.6,3008.5,3.32491241]
[1763635575595,0.112,3008.8,3008.5,3.78451241]
[1763635575792,0.4666,3009.0,3008.6,4.77271167]
[1763635575961,0.112,3008.9,3008.6,4.77271167]
[1763635576457,0.5766,3008.9,3008.6,4.77271167]
[1763635576870,0.4677,3008.7,3008.5,0.001]
[1763635577080,0.795,3008.6,3008.5,0.001]
[1763635577269,1.10455193,3008.6,3008.5,0.001]
[1763635577472,4.42835702,3008.6,3008.5,0.001]
[1763635577704,5.20355585,3008.6,3008.5,0.001]
[1763635577904,0.30955193,3008.6,3008.5,5.23331167]
[1763635578071,0.112,3008.8,3008.5,5.68921167]
[1763635578271,0.112,3008.8,3008.7,5.23231167]
[1763635579282,0.42175191,3008.8,3008.7,5.23231167]
[1763635579707,0.30975191,3008.8,3008.7,5.23231167]
[1763635580906,0.77745191,3008.8,3008.7,4.77271167]
[1763635584087,0.77665191,3008.8,3008.7,4.77271167]
[1763635584290,0.30895191,3008.8,3008.7,8.55600628]
[1763635585315,0.30895191,3008.8,3008.7,5.01696917]
[1763635585516,0.30895191,3008.8,3008.7,9.78968084]
[1763635586099,0.114,3009.0,3008.7,9.78968084]
[1763635586617,0.114,3009.0,3008.7,6.46598623]
[1763635587121,0.4677,3008.8,3008.7,4.77271167]
[1763635588085,4.25589436,3008.8,3008.5,0.001]
[1763635588290,0.4663,3008.6,3008.5,0.001]
[1763635588486,0.5783,3008.6,3008.5,0.001]
[1763635588692,1.0429,3008.6,3008.5,0.001]
[1763635590138,0.4663,3008.6,3008.5,0.001]
[1763635590340,0.5783,3008.6,3008.5,0.001]
[1763635590749,0.112,3008.7,3008.5,0.4606]
[1763635590903,0.112,3008.7,3008.5,0.001]
[1763635591103,0.4677,3008.6,3008.5,0.001]
[1763635591531,0.112,3008.7,3008.5,0.001]
[1763635592635,0.71632517,3008.8,3008.6,0.4596]
[1763635592802,0.112,3008.9,3008.7,0.4596]
[1763635593711,0.002,3009.0,3008.8,0.4856]
[1763635593915,0.002,3009.0,3008.9,1.01213054]
[1763635594111,0.002,3009.0,3008.9,4.33560423]
[1763635594340,0.002,3009.0,3008.9,4.83400423]
[1763635595231,0.002,3009.0,3008.9,4.96705306]
[1763635596027,0.002,3009.0,3008.9,1.14517937]
[1763635596229,0.002,3009.0,3008.9,4.44052252]
[1763635596838,0.002,3009.0,3008.9,4.30747369]
[1763635597045,0.002,3009.0,3008.9,8.23052252]
[1763635598119,0.002,3009.0,3008.9,8.09747369]
[1763635599010,0.002,3009.0,3008.9,8.23052252]
[1763635599215,0.002,3009.0,3008.9,9.38593255]
[1763635600668,0.002,3009.0,3008.9,8.75448372]
[1763635601431,0.002,3009.0,3008.9,8.88753255]
[1763635602751,0.002,3009.0,3008.9,9.36673255]
[1763635604163,0.002,3009.0,3008.9,9.23368372]
[1763635604926,0.002,3009.0,3008.9,8.75448372]
[1763635605126,0.002,3009.0,3008.9,9.23368372]
[1763635605745,0.4895,3009.0,3008.9,3.79]
[1763635605935,0.9416,3009.0,3008.9,3.79]
[1763635608064,4.26496324,3009.0,3008.5,0.001]
[1763635608224,0.002,3009.0,3008.6,0.4749]
[1763635608420,0.002,3009.0,3008.9,0.4749]
[1763635608963,0.002,3009.0,3008.9,3.79837369]
[1763635610257,0.002,3009.0,3008.9,4.55848945]
[1763635610624,0.002,3009.0,3008.9,3.32347369]
[1763635611029,0.002,3009.0,3008.9,3.79837369]
[1763635613967,0.002,3009.0,3008.9,5.18456633]
[1763635614163,0.002,3009.4,3009.0,1.31249664]
[1763635614463,0.002,3009.4,3009.3,7.87922836]
[1763635614676,0.002,3009.4,3009.3,8.7962512]
[1763635614832,0.002,3009.4,3009.3,9.2754512]
[1763635615267,0.002,3009.4,3009.3,12.59848313]
[1763635618572,0.002,3009.9,3009.6,1.31249664]
[1763635618774,0.002,3009.9,3009.8,7.37773972]
[1763635618970,0.002,3009.9,3009.8,9.1244056]
[1763635619135,0.002,3009.9,3009.8,9.6036056]
[1763635619648,0.002,3009.9,3009.8,12.04138149]
[1763635619854,0.002,3009.9,3009.8,12.15338149]
[1763635620368,0.002,3009.9,3009.8,12.63258149]
[1763635622759,0.002,3009.9,3009.8,13.03808549]
[1763635624363,0.002,3010.3,3010.0,0.405504]
[1763635624551,0.002,3010.3,3010.2,1.049604]
[1763635624746,0.002,3010.3,3010.2,1.161604]
[1763635624972,0.002,3010.3,3010.2,1.80712335]
[1763635625870,0.002,3010.3,3010.2,5.12916175]
[1763635626687,0.002,3010.5,3010.3,0.405504]
[1763635626843,0.002,3010.5,3010.4,6.99461717]
[1763635627080,0.002,3010.5,3010.4,9.94621936]
[1763635627687,0.002,3010.5,3010.4,9.46701936]
[1763635627904,0.002,3010.5,3010.4,13.26803705]
[1763635630019,0.4704,3010.5,3009.9,3.32230808]
[1763635630182,0.3373,3010.4,3009.9,3.32230808]
[1763635630383,0.4671,3010.0,3009.9,3.32230808]
[1763635630593,0.4671,3010.0,3009.9,4.22930072]
[1763635630816,0.9583,3010.0,3009.9,4.22930072]
[1763635631005,0.9583,3010.0,3009.9,3.32230808]
[1763635631203,0.9583,3010.0,3009.9,4.22930072]
[1763635631407,0.4671,3010.0,3009.8,6.64492001]
[1763635631618,0.4912,3010.2,3009.8,6.64492001]
[1763635631619,0.4912,3010.3,3009.9,0.90699264]
[1763635631837,0.4912,3010.4,3009.9,0.90799264]
[1763635632042,0.4684,3010.0,3009.9,4.23036215]
[1763635632219,0.4676,3010.0,3009.9,4.23036215]
[1763635632607,0.002,3010.5,3009.9,11.3799954]
[1763635632839,0.002,3010.5,3010.1,0.4825]
[1763635633065,0.002,3010.5,3010.1,0.5945]
[1763635633221,0.4932,3010.5,3010.1,0.5945]
[1763635633830,0.4932,3010.5,3009.9,11.30933739]
[1763635634148,0.4684,3010.2,3010.1,4.2291414]
[1763635634453,0.4932,3010.5,3010.1,4.2291414]
[1763635634454,0.002,3010.5,3010.1,7.55129016]
[1763635634647,0.002,3010.5,3010.2,0.90699264]
[1763635635025,0.4684,3010.3,3010.2,0.90699264]
[1763635636617,0.4684,3010.3,3010.2,4.22903104]
[1763635637012,0.9596,3010.3,3010.2,4.22903104]
[1763635637544,0.9596,3010.3,3010.1,0.90699264]
[1763635637734,0.8277,3010.2,3010.1,0.90699264]
[1763635638758,0.8277,3010.2,3010.1,4.2291414]
[1763635639058,0.3365,3010.2,3010.1,4.2291414]
[1763635639257,0.4684,3010.2,3010.1,4.2291414]
[1763635641458,0.4932,3010.5,3010.1,7.55129016]
[1763635641656,0.4684,3010.2,3010.1,4.2291414]
[1763635641862,0.4684,3010.2,3010.1,0.90699264]
[1763635642060,0.9596,3010.2,3010.0,4.22919407]
[1763635642259,0.3365,3010.1,3010.0,4.22919407]
[1763635642566,0.8277,3010.1,3010.0,4.22919407]
[1763635643331,4.14986491,3010.1,3009.9,0.001]
[1763635643526,1.37328649,3010.0,3009.9,0.001]
[1763635644530,0.9583,3010.0,3009.9,0.001]
[1763635645807,0.4912,3010.4,3009.9,0.4835]
[1763635646102,0.4684,3010.0,3009.9,0.001]
[1763635646469,0.9596,3010.0,3009.9,0.001]
[1763635651601,0.4684,3010.0,3009.9,0.001]
[1763635652028,0.9679,3010.0,3009.9,0.001]
[1763635655204,4.60000417,3010.0,3009.9,0.001]
[1763635655406,5.3922204,3010.0,3009.9,0.001]
[1763635655906,5.43374863,3010.0,3009.9,0.001]
[1763635656113,5.43294863,3010.0,3009.9,0.001]
[1763635656628,5.3914204,3010.0,3009.9,0.001]
[1763635657347,1.27694504,3010.0,3009.9,0.001]
[1763635658000,1.31847327,3010.0,3009.9,0.001]
[1763635660753,1.27694504,3010.0,3009.9,0.001]
[1763635661994,1.31847327,3010.0,3009.9,0.001]
[1763635664652,1.27694504,3010.0,3009.9,0.001]
[1763635666015,5.40252629,3010.0,3009.9,0.001]
[1763635666550,5.40452629,3010.0,3009.9,0.001]
[1763635667349,1.27894504,3010.0,3009.9,0.001]
[1763635673561,4.6427324,3010.0,3009.9,0.001]
[1763635673889,5.35779467,3010.0,3009.9,0.001]
[1763635675180,5.31626644,3010.0,3009.9,0.001]
[1763635680019,1.62060731,3010.0,3009.9,0.001]
[1763635680222,4.94206644,3010.0,3009.9,0.001]
[1763635680362,5.41666644,3010.0,3009.9,0.001]
[1763635680558,5.1076214,3010.0,3009.9,0.001]
[1763635680889,0.002,3010.0,3009.9,0.4901]
[1763635681088,0.002,3010.0,3009.9,5.79334599]
[1763635682403,0.002,3010.0,3009.9,9.6111155]
[1763635683351,0.002,3010.0,3009.9,6.28874599]
[1763635683687,0.002,3010.0,3009.9,5.79334599]
[1763635683871,0.002,3010.0,3009.9,9.1157155]
[1763635684502,0.002,3010.0,3009.9,5.79334599]
[1763635684691,0.002,3010.0,3009.9,9.1157155]
[1763635685077,0.002,3010.0,3009.9,9.6111155]
[1763635685682,0.002,3010.0,3009.9,10.51810814]
[1763635688989,0.002,3010.0,3009.9,10.02270814]
[1763635689606,0.002,3010.0,3009.9,10.47840814]
[1763635692236,0.002,3010.0,3009.9,4.75702997]
[1763635692237,0.4871,3010.0,3009.9,4.75702997]
[1763635692394,0.4871,3010.0,3009.9,9.53360814]
[1763635694523,0.002,3010.0,3009.9,9.53360814]
[1763635695034,0.002,3010.0,3009.9,9.99110814]
[1763635697630,0.002,3010.0,3009.9,9.53360814]
[1763635700423,0.4871,3010.0,3009.9,9.53360814]
[1763635700615,0.002,3010.0,3009.9,9.53360814]
[1763635701694,0.4871,3010.0,3009.9,9.53360814]
[1763635701897,0.002,3010.0,3009.9,9.53360814]
[1763635702727,0.002,3010.0,3009.9,9.99110814]
[1763635704217,0.0012,3010.0,3009.9,9.99110814]
[1763635704636,0.0012,3010.0,3009.9,10.44680814]
[1763635710237,0.0012,3010.0,3009.9,14.23680814]
[1763635711569,0.002,3010.4,3010.0,0.90699264]
[1763635711871,0.002,3010.4,3010.3,5.39817817]
[1763635712673,0.002,3010.4,3010.3,5.88387817]
[1763635712859,0.002,3010.4,3010.3,5.87987105]
[1763635713173,0.002,3010.4,3010.3,9.20179909]
[1763635713330,0.002,3010.4,3010.3,8.71609909]
[1763635713531,0.002,3010.4,3010.3,10.33603235]
[1763635714769,0.9591,3010.4,3010.3,9.71443235]
[1763635715469,0.4934,3010.4,3010.3,9.71443235]
[1763635715768,0.4934,3010.4,3010.3,3.79]
[1763635716068,0.9591,3010.4,3010.3,3.79]
[1763635717984,4.59211112,3010.4,3009.9,0.001]
[1763635718163,0.3306,3010.2,3010.0,4.77257105]
[1763635718667,0.4503,3010.1,3010.0,4.77257105]
[1763635719261,1.25530472,3010.1,3009.9,0.001]
[1763635719558,0.65470472,3010.0,3009.9,0.001]
[1763635719755,1.14850472,3010.0,3009.9,0.001]
[1763635719952,4.47076385,3010.0,3009.9,0.001]
[1763635720157,5.25005587,3010.0,3009.9,0.001]
[1763635721490,1.14850472,3010.0,3009.9,0.001]
[1763635721861,4.47076385,3010.0,3009.9,0.001]
[1763635725552,1.14850472,3010.0,3009.9,0.001]
[1763635725958,0.65470472,3010.0,3009.9,0.001]
[1763635726584,1.14850472,3010.0,3009.9,0.001]
[1763635728261,1.14770472,3010.0,3009.9,0.001]
[1763635728674,0.65390472,3010.0,3009.9,0.001]
[1763635728881,0.3427,3010.0,3009.9,0.001]
[1763635729188,0.8365,3010.0,3009.9,0.001]
[1763635729491,4.46996385,3010.0,3009.9,0.001]
[1763635729660,4.92816024,3010.0,3009.9,0.001]
[1763635730083,1.60590111,3010.0,3009.9,0.001]
[1763635730294,1.14770472,3010.0,3009.9,0.001]
[1763635732188,0.31120472,3010.0,3009.9,0.001]
[1763635732398,0.76150472,3010.0,3009.9,0.001]
[1763635732696,0.002,3010.4,3009.9,0.9386]
[1763635732863,0.002,3010.4,3010.3,5.24177105]
[1763635736863,0.4523,3010.4,3010.3,4.77257105]
[1763635737997,0.002,3010.4,3010.3,5.24177105]
[1763635738295,0.002,3010.4,3010.3,6.12844491]
[1763635739898,0.002,3010.4,3010.3,5.65924491]
[1763635740301,0.002,3010.4,3010.3,9.45037295]
[1763635740506,0.002,3010.4,3010.3,10.82576559]
[1763635740804,0.002,3010.4,3010.3,11.13838404]
[1763635741110,0.002,3010.4,3010.3,7.816456]
[1763635741310,0.002,3010.4,3010.3,11.13838404]
[1763635741492,0.002,3010.4,3010.3,7.816456]
[1763635741804,0.002,3010.4,3010.3,11.13838404]
[1763635742306,0.002,3010.5,3010.4,0.90699264]
[1763635742480,0.002,3010.5,3010.4,3.63402704]
[1763635743203,0.002,3010.5,3010.4,3.76699404]
[1763635745114,0.002,3010.5,3010.4,7.08881173]
[1763635747614,0.002,3010.5,3010.4,6.62041173]
[1763635748014,0.002,3010.5,3010.4,7.08881173]
[1763635749439,0.002,3010.5,3010.4,7.08981173]
[1763635750234,0.002,3010.7,3010.5,0.9461]
[1763635750410,0.002,3010.7,3010.6,6.42445992]
[1763635750615,0.002,3010.7,3010.6,6.89505992]
[1763635750824,0.002,3010.7,3010.6,7.00564569]
[1763635751740,0.002,3010.7,3010.6,10.32724271]
[1763635752230,0.0012,3010.7,3010.6,10.32724271]
[1763635753748,0.0012,3010.8,3010.6,14.11724271]
[1763635753910,0.002,3011.2,3011.0,4.77257105]
[1763635754239,0.002,3011.2,3011.0,6.26706369]
[1763635754535,0.002,3011.2,3011.0,6.40000816]
[1763635755843,0.002,3011.2,3011.0,9.72116392]
[1763635757346,0.002,3011.2,3011.0,13.51116392]
[1763635757513,0.002,3011.2,3011.0,15.24146614]
[1763635758345,0.002,3011.2,3011.0,15.71206614]
[1763635760649,0.002,3011.2,3011.0,15.24146614]
[1763635762652,0.002,3011.2,3011.0,15.71206614]
[1763635763026,0.002,3011.2,3011.0,15.24146614]
[1763635763227,0.002,3011.2,3011.0,15.71206614]
[1763635767218,0.002,3011.2,3011.0,15.71306614]
[1763635772964,0.002,3011.2,3011.0,15.7103406]
[1763635774083,0.002,3011.2,3011.0,20.48018611]
[1763635776067,0.002,3011.2,3011.0,15.7103406]
[1763635776371,0.0012,3011.1,3011.0,15.7103406]
[1763635776572,0.0012,3011.1,3011.0,15.2397406]
[1763635776771,0.0012,3011.1,3011.0,15.6953406]
[1763635778096,0.4519,3011.1,3011.0,9.88239509]
[1763635778402,0.9228,3011.1,3011.0,13.03393838]
[1763635779110,0.4519,3011.1,3011.0,13.03393838]
[1763635779260,0.9228,3011.1,3011.0,0.001]
[1763635779459,1.23379115,3011.1,3011.0,0.001]
[1763635782500,0.9228,3011.1,3011.0,0.001]
[1763635783009,4.55470385,3011.1,3011.0,0.001]
[1763635783308,5.08221331,3011.1,3011.0,0.001]
[1763635785964,1.76116785,3011.1,3011.0,0.001]
[1763635786182,4.55441502,3011.1,3011.0,0.001]
[1763635788767,4.24384546,3011.1,3011.0,0.001]
[1763635796132,0.4519,3011.1,3011.0,0.001]
[1763635796332,0.9228,3011.1,3011.0,0.001]
[1763635798937,4.24384546,3011.1,3011.0,0.001]
[1763635799743,0.9228,3011.1,3011.0,0.001]
[1763635800141,0.922,3011.1,3011.0,0.001]
[1763635800641,0.4511,3011.1,3011.0,0.001]
[1763635801235,4.24304546,3011.1,3011.0,0.001]
[1763635801434,5.0039856,3011.1,3011.0,0.001]
[1763635801631,5.3143941,3011.1,3011.0,0.001]
[1763635802432,5.0039856,3011.1,3011.0,0.001]
[1763635802629,5.3144732,3011.1,3011.0,0.001]